[Event "Late-Titled-Tuesday-Blitz-March-05-2024"]
[Site "Chess.com"]
[Date "2024.03.05"]
[Round "4"]
[White "baki83"]
[Black "Oleksandr_Bortnyk"]
[Result "1-0"]
[WhiteElo "2825"]
[BlackElo "2999"]
[TimeControl "180+1"]
[EndTime "14:41:13 PST"]
[Termination "baki83 won by resignation"]

1. e4 {[%clk 0:03:00.9]} 1... Nf6 {[%clk 0:03:00]} 2. e5 {[%clk 0:03:00.7]} 2...
Nd5 {[%clk 0:02:59.8]} 3. d4 {[%clk 0:03:01.4]} 3... d6 {[%clk 0:03:00.4]} 4.
Nf3 {[%clk 0:03:02]} 4... dxe5 {[%clk 0:03:01.1]} 5. Nxe5 {[%clk 0:03:02.7]}
5... c6 {[%clk 0:03:01.5]} 6. Be2 {[%clk 0:03:01.6]} 6... Bf5 {[%clk 0:03:01.3]}
7. O-O {[%clk 0:03:00.1]} 7... Nd7 {[%clk 0:03:01.7]} 8. Nf3 {[%clk 0:03:00.4]}
8... e6 {[%clk 0:03:02.1]} 9. c4 {[%clk 0:02:59.4]} 9... N5f6 {[%clk 0:03:02.5]}
10. Nc3 {[%clk 0:02:59.8]} 10... Bd6 {[%clk 0:03:02.7]} 11. Nh4 {[%clk
0:02:54.8]} 11... Bg6 {[%clk 0:03:02.1]} 12. g3 {[%clk 0:02:53]} 12... O-O
{[%clk 0:03:01.5]} 13. Be3 {[%clk 0:02:52.3]} 13... e5 {[%clk 0:03:00.5]} 14. d5
{[%clk 0:02:50.8]} 14... Qc7 {[%clk 0:02:42.9]} 15. Rc1 {[%clk 0:02:44.7]} 15...
a5 {[%clk 0:02:37.9]} 16. Bf3 {[%clk 0:02:34.5]} 16... Rfe8 {[%clk 0:02:33.6]}
17. Nxg6 {[%clk 0:02:30.5]} 17... hxg6 {[%clk 0:02:34.5]} 18. Qc2 {[%clk
0:01:50.3]} 18... Bc5 {[%clk 0:02:29.7]} 19. Bg5 {[%clk 0:01:49.8]} 19... Bd4
{[%clk 0:02:26.2]} 20. Ne2 {[%clk 0:01:43.6]} 20... Bc5 {[%clk 0:02:11.4]} 21.
Bg2 {[%clk 0:01:40.7]} 21... a4 {[%clk 0:02:05.1]} 22. Qd2 {[%clk 0:01:26.9]}
22... Qb6 {[%clk 0:02:01.8]} 23. Nc3 {[%clk 0:01:16]} 23... Bd4 {[%clk
0:01:56.4]} 24. Rc2 {[%clk 0:01:15.8]} 24... Nc5 {[%clk 0:01:52.1]} 25. Bxf6
{[%clk 0:01:15.6]} 25... gxf6 {[%clk 0:01:53]} 26. Ne2 {[%clk 0:01:11.8]} 26...
Na6 {[%clk 0:01:50.7]} 27. Nxd4 {[%clk 0:01:09.6]} 27... exd4 {[%clk 0:01:49.5]}
28. c5 {[%clk 0:01:09.4]} 28... Qb5 {[%clk 0:01:20.8]} 29. Qxd4 {[%clk
0:01:06.5]} 29... Nb4 {[%clk 0:01:19.5]} 30. Rc4 {[%clk 0:01:06.5]} 30... Nxd5
{[%clk 0:01:16.4]} 31. Bxd5 {[%clk 0:01:05.3]} 31... cxd5 {[%clk 0:01:17.3]} 32.
Rb4 {[%clk 0:01:05.5]} 32... Qc6 {[%clk 0:01:08.1]} 33. Rb6 {[%clk 0:01:05.5]}
33... Re4 {[%clk 0:01:06.8]} 34. Qc3 {[%clk 0:00:54.9]} 34... d4 {[%clk
0:00:36.8]} 35. Qc4 {[%clk 0:00:43.2]} 35... d3 {[%clk 0:00:25.5]} 36. Qxd3
{[%clk 0:00:41.9]} 36... Qxc5 {[%clk 0:00:26.1]} 37. Rxb7 {[%clk 0:00:40.9]}
37... Rae8 {[%clk 0:00:17]} 38. Qd7 {[%clk 0:00:30.2]} 38... Qc4 {[%clk
0:00:10.9]} 39. b3 {[%clk 0:00:23.7]} 39... Qe6 {[%clk 0:00:09.8]} 40. Qxe6
{[%clk 0:00:20.6]} 40... R8xe6 {[%clk 0:00:10.7]} 41. Rd1 {[%clk 0:00:17.7]}
41... Re1+ {[%clk 0:00:03.3]} 42. Rxe1 {[%clk 0:00:17.3]} 42... Rxe1+ {[%clk
0:00:04.2]} 43. Kg2 {[%clk 0:00:17.6]} 43... Re2 {[%clk 0:00:04]} 44. Ra7 {[%clk
0:00:11.4]} 44... axb3 {[%clk 0:00:02.7]} 45. axb3 {[%clk 0:00:12]} 45... Rb2
{[%clk 0:00:03.2]} 46. Rb7 {[%clk 0:00:12.4]} 46... f5 {[%clk 0:00:04.1]} 47. h4
{[%clk 0:00:12.1]} 47... Kg7 {[%clk 0:00:05]} 48. Kf3 {[%clk 0:00:12.5]} 48...
Kf6 {[%clk 0:00:05.9]} 49. Ke3 {[%clk 0:00:12.8]} 49... Ke6 {[%clk 0:00:02.7]}
50. b4 {[%clk 0:00:12.4]} 50... f6 {[%clk 0:00:02.5]} 51. Rb6+ {[%clk
0:00:11.7]} 51... Kf7 {[%clk 0:00:02.4]} 52. b5 {[%clk 0:00:11.6]} 52... g5
{[%clk 0:00:02.3]} 53. hxg5 {[%clk 0:00:07.4]} 53... fxg5 {[%clk 0:00:03.2]} 54.
Rb8 {[%clk 0:00:06.8]} 54... f4+ {[%clk 0:00:01.6]} 55. gxf4 {[%clk 0:00:06.6]}
55... gxf4+ {[%clk 0:00:02.5]} 56. Kf3 {[%clk 0:00:07]} 56... Ke7 {[%clk
0:00:02.2]} 57. b6 {[%clk 0:00:07.4]} 57... Kd7 {[%clk 0:00:02.8]} 58. Rb7+
{[%clk 0:00:01.1]} 58... Kc8 {[%clk 0:00:01.8]} 59. Rc7+ {[%clk 0:00:01.5]}
59... Kd8 {[%clk 0:00:02.7]} 60. Rc6 {[%clk 0:00:01.9]} 60... Kd7 {[%clk
0:00:03.6]} 61. Rf6 {[%clk 0:00:02.3]} 61... Rb4 {[%clk 0:00:04.5]} 62. Rh6
{[%clk 0:00:02.2]} 62... Ke7 {[%clk 0:00:04.9]} 63. b7 {[%clk 0:00:02.3]} 63...
Kd7 {[%clk 0:00:05.2]} 64. Rh7+ {[%clk 0:00:02.9]} 64... Kc6 {[%clk 0:00:05.6]}
65. Kg4 {[%clk 0:00:03.2]} 65... Kd6 {[%clk 0:00:04.4]} 66. f3 {[%clk
0:00:03.5]} 66... Ke6 {[%clk 0:00:04.3]} 67. Rg7 {[%clk 0:00:03.3]} 67... Kf6
{[%clk 0:00:04.6]} 68. Rc7 {[%clk 0:00:03.5]} 68... Ke5 {[%clk 0:00:04.9]} 69.
Rf7 {[%clk 0:00:03.3]} 69... Ke6 {[%clk 0:00:05.1]} 70. Rc7 {[%clk 0:00:02.8]}
70... Kf6 {[%clk 0:00:05.7]} 71. Rh7 {[%clk 0:00:02.8]} 71... Kg6 {[%clk
0:00:05.7]} 72. Rd7 {[%clk 0:00:02.1]} 72... Kf6 {[%clk 0:00:06.3]} 73. Rc7
{[%clk 0:00:02.6]} 73... Kg6 {[%clk 0:00:05.8]} 74. Rc6+ {[%clk 0:00:02.1]}
74... Kf7 {[%clk 0:00:06.3]} 75. Rc7+ {[%clk 0:00:01.2]} 75... Kg6 {[%clk
0:00:06.5]} 76. Kh3 {[%clk 0:00:01.8]} 76... Kg5 {[%clk 0:00:06.1]} 77. Kg2
{[%clk 0:00:02.3]} 77... Rb2+ {[%clk 0:00:05.6]} 78. Kf1 {[%clk 0:00:02.9]}
78... Kf5 {[%clk 0:00:06.3]} 79. Ke1 {[%clk 0:00:03.5]} 79... Ke5 {[%clk
0:00:06.8]} 80. Kd1 {[%clk 0:00:03.9]} 80... Kd4 {[%clk 0:00:07.3]} 81. Kc1
{[%clk 0:00:03.3]} 81... Rb6 {[%clk 0:00:07.1]} 82. Kc2 {[%clk 0:00:03.6]} 82...
Ke3 {[%clk 0:00:07.2]} 83. Rc3+ {[%clk 0:00:03.3]} 83... Ke2 {[%clk 0:00:05.4]}
84. Rb3 {[%clk 0:00:04.2]} 84... Rxb7 {[%clk 0:00:04]} 85. Rxb7 {[%clk
0:00:03.5]} 85... Kxf3 {[%clk 0:00:04.9]} 86. Kd2 {[%clk 0:00:03.9]} 86... Kf2
{[%clk 0:00:04.1]} 87. Rf7 {[%clk 0:00:03.7]} 87... f3 {[%clk 0:00:04.6]} 88.
Rf6 {[%clk 0:00:04.3]} 88... Kg2 {[%clk 0:00:02.5]} 89. Ke3 {[%clk 0:00:04.6]}
89... f2 {[%clk 0:00:03.4]} 90. Rxf2+ {[%clk 0:00:04.7]} 1-0

[Event "Late-Titled-Tuesday-Blitz-March-05-2024"]
[Site "Chess.com"]
[Date "2024.03.05"]
[Round "4"]
[White "MaiqMaster"]
[Black "ATM622"]
[Result "1/2-1/2"]
[WhiteElo "2323"]
[BlackElo "2491"]
[TimeControl "180+1"]
[EndTime "14:41:33 PST"]
[Termination "Game drawn - insufficient material"]

1. d4 {[%clk 0:03:00.9]} 1... g6 {[%clk 0:02:58.1]} 2. c4 {[%clk 0:02:57.7]}
2... Bg7 {[%clk 0:02:58.2]} 3. g3 {[%clk 0:02:56]} 3... c5 {[%clk 0:02:57.7]} 4.
d5 {[%clk 0:02:54.9]} 4... Nf6 {[%clk 0:02:55.7]} 5. Nc3 {[%clk 0:02:51.5]} 5...
O-O {[%clk 0:02:52.6]} 6. Bg2 {[%clk 0:02:51.1]} 6... d6 {[%clk 0:02:51.3]} 7.
Nf3 {[%clk 0:02:50.5]} 7... Nbd7 {[%clk 0:02:50.5]} 8. O-O {[%clk 0:02:48.4]}
8... Ne5 {[%clk 0:02:48.3]} 9. Nxe5 {[%clk 0:02:43.6]} 9... dxe5 {[%clk
0:02:48.6]} 10. Rb1 {[%clk 0:02:37.6]} 10... e6 {[%clk 0:02:48.9]} 11. a3 {[%clk
0:02:20.7]} 11... Rb8 {[%clk 0:02:44.8]} 12. b4 {[%clk 0:02:18.7]} 12... cxb4
{[%clk 0:02:41.4]} 13. axb4 {[%clk 0:02:19.6]} 13... exd5 {[%clk 0:02:41.2]} 14.
Nxd5 {[%clk 0:02:12.5]} 14... Nxd5 {[%clk 0:02:41]} 15. Bxd5 {[%clk 0:02:12.7]}
15... b5 {[%clk 0:02:40.9]} 16. c5 {[%clk 0:02:06.4]} 16... Bh3 {[%clk 0:02:36]}
17. Bg2 {[%clk 0:02:03.1]} 17... Bf5 {[%clk 0:02:30.3]} 18. e4 {[%clk
0:01:58.5]} 18... Be6 {[%clk 0:02:28.3]} 19. Be3 {[%clk 0:01:55]} 19... Bc4
{[%clk 0:02:22.2]} 20. Qxd8 {[%clk 0:01:53.4]} 20... Rfxd8 {[%clk 0:02:21.1]}
21. Rfd1 {[%clk 0:01:53.9]} 21... Be6 {[%clk 0:02:02.5]} 22. c6 {[%clk
0:01:39.1]} 22... Rdc8 {[%clk 0:02:02.2]} 23. Bxa7 {[%clk 0:01:23.7]} 23... Ra8
{[%clk 0:02:02.1]} 24. Bc5 {[%clk 0:01:22.4]} 24... Rxc6 {[%clk 0:02:02.2]} 25.
Ra1 {[%clk 0:01:21.7]} 25... Rxa1 {[%clk 0:01:55.4]} 26. Rxa1 {[%clk 0:01:22.6]}
26... h5 {[%clk 0:01:50.9]} 27. Bf1 {[%clk 0:01:21.5]} 27... Bc4 {[%clk
0:01:44.7]} 28. Bxc4 {[%clk 0:01:21.4]} 28... bxc4 {[%clk 0:01:45.6]} 29. Rc1
{[%clk 0:01:21.9]} 29... Bf8 {[%clk 0:01:34]} 30. Rxc4 {[%clk 0:01:21]} 30... f5
{[%clk 0:01:33.4]} 31. f3 {[%clk 0:01:18.3]} 31... Kf7 {[%clk 0:01:31]} 32. Kf2
{[%clk 0:01:17]} 32... Ke6 {[%clk 0:01:31.3]} 33. Ke2 {[%clk 0:01:15.6]} 33...
Rc8 {[%clk 0:01:16.7]} 34. Kd3 {[%clk 0:01:11.3]} 34... Bh6 {[%clk 0:01:10.4]}
35. Kc3 {[%clk 0:00:53.4]} 35... f4 {[%clk 0:01:00.3]} 36. b5 {[%clk 0:00:45.6]}
36... Bg5 {[%clk 0:00:53.5]} 37. b6 {[%clk 0:00:37.4]} 37... Rb8 {[%clk
0:00:52.4]} 38. Kb4 {[%clk 0:00:35.2]} 38... Bd8 {[%clk 0:00:47.8]} 39. Kb5
{[%clk 0:00:34.6]} 39... g5 {[%clk 0:00:37.6]} 40. Rc1 {[%clk 0:00:25.9]} 40...
g4 {[%clk 0:00:36.1]} 41. gxf4 {[%clk 0:00:20.2]} 41... exf4 {[%clk 0:00:36.5]}
42. Rg1 {[%clk 0:00:19.6]} 42... Ke5 {[%clk 0:00:14.7]} 43. fxg4 {[%clk
0:00:19.4]} 43... hxg4 {[%clk 0:00:14.9]} 44. Rxg4 {[%clk 0:00:19]} 44... Bxb6
{[%clk 0:00:15.2]} 45. Bxb6 {[%clk 0:00:18.5]} 45... Kxe4 {[%clk 0:00:15.4]} 46.
Kc6 {[%clk 0:00:18]} 46... Kf3 {[%clk 0:00:14.2]} 47. Rxf4+ {[%clk 0:00:18.1]}
47... Kg2 {[%clk 0:00:12.5]} 48. Rh4 {[%clk 0:00:16.8]} 48... Rg8 {[%clk
0:00:10.7]} 49. Rh6 {[%clk 0:00:15.4]} 49... Kf3 {[%clk 0:00:09.2]} 50. Bc7
{[%clk 0:00:15.2]} 50... Kg4 {[%clk 0:00:08.7]} 51. Kd5 {[%clk 0:00:14.3]} 51...
Kg5 {[%clk 0:00:08.9]} 52. Rh7 {[%clk 0:00:13.1]} 52... Kg6 {[%clk 0:00:09]} 53.
Rh3 {[%clk 0:00:12.9]} 53... Ra8 {[%clk 0:00:08.4]} 54. Bd6 {[%clk 0:00:12.6]}
54... Ra5+ {[%clk 0:00:08.1]} 55. Ke4 {[%clk 0:00:12.5]} 55... Rb5 {[%clk
0:00:06.9]} 56. Be5 {[%clk 0:00:12.3]} 56... Rb4+ {[%clk 0:00:06.9]} 57. Bd4
{[%clk 0:00:12.7]} 57... Rb5 {[%clk 0:00:07.2]} 58. Rg3+ {[%clk 0:00:12.7]}
58... Kh5 {[%clk 0:00:07.3]} 59. Be3 {[%clk 0:00:11.9]} 59... Kh4 {[%clk
0:00:06.2]} 60. Kf3 {[%clk 0:00:12.2]} 60... Rf5+ {[%clk 0:00:05.9]} 61. Kg2
{[%clk 0:00:11.7]} 61... Ra5 {[%clk 0:00:05.4]} 62. Bf2 {[%clk 0:00:11.9]} 62...
Kh5 {[%clk 0:00:05.6]} 63. h3 {[%clk 0:00:11.5]} 63... Ra4 {[%clk 0:00:05.6]}
64. Rf3 {[%clk 0:00:11.1]} 64... Rb4 {[%clk 0:00:05.5]} 65. Kg3 {[%clk
0:00:11.4]} 65... Ra4 {[%clk 0:00:05.5]} 66. Rf5+ {[%clk 0:00:11.5]} 66... Kg6
{[%clk 0:00:06]} 67. Rf4 {[%clk 0:00:11.7]} 67... Ra3+ {[%clk 0:00:05.2]} 68.
Kg4 {[%clk 0:00:11.8]} 68... Ra5 {[%clk 0:00:05.2]} 69. h4 {[%clk 0:00:12]}
69... Rb5 {[%clk 0:00:04.7]} 70. Bd4 {[%clk 0:00:11.4]} 70... Rd5 {[%clk
0:00:04.4]} 71. Rf6+ {[%clk 0:00:11.3]} 71... Kh7 {[%clk 0:00:04.9]} 72. Be3
{[%clk 0:00:11]} 72... Re5 {[%clk 0:00:04.8]} 73. Bf4 {[%clk 0:00:11.2]} 73...
Rd5 {[%clk 0:00:05.1]} 74. h5 {[%clk 0:00:11.5]} 74... Kg7 {[%clk 0:00:05.1]}
75. Rf5 {[%clk 0:00:11.8]} 75... Rd1 {[%clk 0:00:04.6]} 76. Be5+ {[%clk
0:00:09.7]} 76... Kh6 {[%clk 0:00:03.2]} 77. Rf6+ {[%clk 0:00:08.1]} 77... Kh7
{[%clk 0:00:03.2]} 78. Rf7+ {[%clk 0:00:08.5]} 78... Kg8 {[%clk 0:00:03.2]} 79.
Rg7+ {[%clk 0:00:08.7]} 79... Kf8 {[%clk 0:00:03.3]} 80. Kf5 {[%clk 0:00:08.6]}
80... Rf1+ {[%clk 0:00:03.1]} 81. Ke6 {[%clk 0:00:08.2]} 81... Rh1 {[%clk
0:00:01.7]} 82. Rg5 {[%clk 0:00:07.3]} 82... Rh3 {[%clk 0:00:01.5]} 83. Kf5
{[%clk 0:00:06.5]} 83... Kf7 {[%clk 0:00:01.7]} 84. Rg7+ {[%clk 0:00:06.2]}
84... Kf8 {[%clk 0:00:02]} 85. Kg6 {[%clk 0:00:05.8]} 85... Rh1 {[%clk
0:00:02.2]} 86. h6 {[%clk 0:00:04.6]} 86... Rg1+ {[%clk 0:00:02.1]} 87. Kh7
{[%clk 0:00:05.1]} 87... Rh1 {[%clk 0:00:02.6]} 88. Bd6+ {[%clk 0:00:03.4]}
88... Ke8 {[%clk 0:00:03]} 89. Rg6 {[%clk 0:00:03.3]} 89... Kf7 {[%clk
0:00:03.2]} 90. Rg7+ {[%clk 0:00:03.3]} 90... Kf6 {[%clk 0:00:03.5]} 91. Kg8
{[%clk 0:00:03.4]} 91... Rxh6 {[%clk 0:00:03.5]} 92. Rf7+ {[%clk 0:00:03.5]}
92... Ke6 {[%clk 0:00:03.6]} 93. Bf8 {[%clk 0:00:03.9]} 93... Rg6+ {[%clk
0:00:03.8]} 94. Rg7 {[%clk 0:00:04.5]} 94... Rxg7+ {[%clk 0:00:04]} 95. Kxg7
{[%clk 0:00:05.4]} 1/2-1/2

[Event "Late-Titled-Tuesday-Blitz-March-05-2024"]
[Site "Chess.com"]
[Date "2024.03.05"]
[Round "5"]
[White "traack"]
[Black "djano"]
[Result "0-1"]
[WhiteElo "2434"]
[BlackElo "2570"]
[TimeControl "180+1"]
[EndTime "14:49:08 PST"]
[Termination "djano won by resignation"]

1. e4 {[%clk 0:03:00.9]} 1... c5 {[%clk 0:02:57.3]} 2. Nf3 {[%clk 0:02:59.9]}
2... Nc6 {[%clk 0:02:57.3]} 3. Bb5 {[%clk 0:02:57.7]} 3... e5 {[%clk 0:02:57.3]}
4. O-O {[%clk 0:02:56.6]} 4... Nge7 {[%clk 0:02:57.6]} 5. c3 {[%clk 0:02:53.4]}
5... g6 {[%clk 0:02:57.5]} 6. d4 {[%clk 0:02:52.9]} 6... cxd4 {[%clk 0:02:58.4]}
7. cxd4 {[%clk 0:02:52.5]} 7... exd4 {[%clk 0:02:59.3]} 8. Nxd4 {[%clk
0:02:52.2]} 8... Bg7 {[%clk 0:02:58.7]} 9. Be3 {[%clk 0:02:52]} 9... O-O {[%clk
0:02:57.5]} 10. Nc3 {[%clk 0:02:51.4]} 10... d5 {[%clk 0:02:58.2]} 11. Nxc6
{[%clk 0:02:37.2]} 11... bxc6 {[%clk 0:02:55]} 12. Be2 {[%clk 0:02:20]} 12... d4
{[%clk 0:02:54.3]} 0-1

[Event "Late-Titled-Tuesday-Blitz-March-05-2024"]
[Site "Chess.com"]
[Date "2024.03.05"]
[Round "5"]
[White "Practical-Play"]
[Black "GianmarcoVaR"]
[Result "1/2-1/2"]
[WhiteElo "2574"]
[BlackElo "2772"]
[TimeControl "180+1"]
[EndTime "14:51:24 PST"]
[Termination "Game drawn by repetition"]

1. e4 {[%clk 0:03:00.9]} 1... c5 {[%clk 0:02:55.7]} 2. c3 {[%clk 0:03:00.3]}
2... Nf6 {[%clk 0:02:48.9]} 3. e5 {[%clk 0:03:00.3]} 3... Nd5 {[%clk 0:02:46.8]}
4. d4 {[%clk 0:03:00.7]} 4... cxd4 {[%clk 0:02:47]} 5. Nf3 {[%clk 0:03:01.3]}
5... Nc6 {[%clk 0:02:47.3]} 6. Bc4 {[%clk 0:03:01.9]} 6... Nb6 {[%clk
0:02:47.7]} 7. Bb3 {[%clk 0:03:02.1]} 7... d5 {[%clk 0:02:48.1]} 8. exd6 {[%clk
0:03:01.9]} 8... Qxd6 {[%clk 0:02:46.7]} 9. O-O {[%clk 0:03:02.2]} 9... Be6
{[%clk 0:02:47.2]} 10. Na3 {[%clk 0:03:02]} 10... Bxb3 {[%clk 0:02:44.3]} 11.
Qxb3 {[%clk 0:03:02]} 11... e6 {[%clk 0:02:33.4]} 12. Nb5 {[%clk 0:03:01.5]}
12... Qb8 {[%clk 0:02:30.8]} 13. Nbxd4 {[%clk 0:02:26.8]} 13... Nxd4 {[%clk
0:02:25.1]} 14. Nxd4 {[%clk 0:02:25.1]} 14... Bd6 {[%clk 0:02:25.8]} 15. Nxe6
{[%clk 0:01:59.3]} 15... fxe6 {[%clk 0:01:40.9]} 16. Qxe6+ {[%clk 0:02:00.2]}
16... Kf8 {[%clk 0:01:41.6]} 17. Qf5+ {[%clk 0:01:56.4]} 17... Kg8 {[%clk
0:01:42.2]} 18. Qe6+ {[%clk 0:01:55.6]} 18... Kf8 {[%clk 0:01:42.7]} 19. Qf5+
{[%clk 0:01:28.1]} 19... Kg8 {[%clk 0:01:38.8]} 20. Qe6+ {[%clk 0:01:28.1]}
20... Kf8 {[%clk 0:01:38]} 1/2-1/2

[Event "Late-Titled-Tuesday-Blitz-March-05-2024"]
[Site "Chess.com"]
[Date "2024.03.05"]
[Round "5"]
[White "ContrVersia"]
[Black "Njal28"]
[Result "0-1"]
[WhiteElo "2865"]
[BlackElo "3006"]
[TimeControl "180+1"]
[EndTime "14:51:33 PST"]
[Termination "Njal28 won by resignation"]

1. d4 {[%clk 0:03:00.9]} 1... Nf6 {[%clk 0:03:00]} 2. c4 {[%clk 0:03:01]} 2...
c5 {[%clk 0:02:59.8]} 3. d5 {[%clk 0:03:01.1]} 3... b5 {[%clk 0:02:59.8]} 4.
cxb5 {[%clk 0:03:02]} 4... a6 {[%clk 0:03:00.1]} 5. e3 {[%clk 0:03:02.7]} 5...
g6 {[%clk 0:02:59.5]} 6. Nc3 {[%clk 0:03:02.9]} 6... Bg7 {[%clk 0:02:59.5]} 7.
a4 {[%clk 0:03:03.3]} 7... O-O {[%clk 0:02:59.7]} 8. Nf3 {[%clk 0:03:03.3]} 8...
axb5 {[%clk 0:02:59]} 9. Bxb5 {[%clk 0:03:03]} 9... d6 {[%clk 0:02:58.4]} 10.
O-O {[%clk 0:03:02.7]} 10... Na6 {[%clk 0:02:55.1]} 11. e4 {[%clk 0:02:57.2]}
11... Nc7 {[%clk 0:02:53.1]} 12. Bc6 {[%clk 0:02:50.4]} 12... Rb8 {[%clk
0:02:48.6]} 13. Ra3 {[%clk 0:02:47.7]} 13... Ba6 {[%clk 0:02:38.7]} 14. Re1
{[%clk 0:02:47.7]} 14... Ng4 {[%clk 0:02:39.3]} 15. Bf4 {[%clk 0:02:46.3]} 15...
Rxb2 {[%clk 0:02:38.4]} 16. Bg3 {[%clk 0:02:42.1]} 16... Qb8 {[%clk 0:02:32.7]}
17. e5 {[%clk 0:02:23.4]} 17... Qb4 {[%clk 0:02:24.7]} 18. Qa1 {[%clk
0:02:23.3]} 18... Rb8 {[%clk 0:01:23]} 19. Re4 {[%clk 0:02:16.9]} 19... Qxe4
{[%clk 0:01:22.8]} 20. Nxe4 {[%clk 0:02:17.5]} 20... Rb1+ {[%clk 0:01:23.1]} 21.
Ne1 {[%clk 0:02:15.5]} 21... Rxa1 {[%clk 0:01:21.2]} 22. Rxa1 {[%clk 0:02:16.4]}
22... Nxe5 {[%clk 0:01:19.1]} 23. Bxe5 {[%clk 0:02:14.2]} 23... Bxe5 {[%clk
0:01:20]} 24. Rc1 {[%clk 0:02:14.4]} 24... Rb4 {[%clk 0:01:16.1]} 25. Nd2 {[%clk
0:02:13.2]} 25... Bf4 {[%clk 0:01:12.3]} 26. Nef3 {[%clk 0:02:10.8]} 26... Rb2
{[%clk 0:01:10.7]} 0-1

[Event "Late-Titled-Tuesday-Blitz-March-05-2024"]
[Site "Chess.com"]
[Date "2024.03.05"]
[Round "5"]
[White "Squirlolz"]
[Black "alexrustemov"]
[Result "1-0"]
[WhiteElo "2597"]
[BlackElo "2795"]
[TimeControl "180+1"]
[EndTime "14:51:50 PST"]
[Termination "Squirlolz won on time"]

1. b3 {[%clk 0:03:00.9]} 1... d5 {[%clk 0:00:38.7]} 2. Bb2 {[%clk 0:03:00.4]}
2... Bf5 {[%clk 0:00:38.9]} 3. e3 {[%clk 0:03:00.4]} 3... e6 {[%clk 0:00:39.2]}
4. f4 {[%clk 0:03:00.8]} 4... Nf6 {[%clk 0:00:36.9]} 5. Nf3 {[%clk 0:03:01.1]}
5... Be7 {[%clk 0:00:37.2]} 6. d3 {[%clk 0:03:01.6]} 6... O-O {[%clk 0:00:09]}
7. Nbd2 {[%clk 0:03:01.6]} 7... c5 {[%clk 0:00:06.7]} 8. Qe2 {[%clk 0:03:00.1]}
8... Nc6 {[%clk 0:00:07.1]} 9. Rg1 {[%clk 0:03:00.2]} 9... Bg4 {[%clk
0:00:07.1]} 10. O-O-O {[%clk 0:02:49.8]} 10... a5 {[%clk 0:00:07]} 11. a4 {[%clk
0:02:41.6]} 11... Nb4 {[%clk 0:00:06.9]} 12. c3 {[%clk 0:02:35.1]} 12... Nc6
{[%clk 0:00:03.1]} 13. h3 {[%clk 0:02:35.8]} 13... Bxf3 {[%clk 0:00:02.9]} 14.
Nxf3 {[%clk 0:02:30.3]} 1-0

[Event "Late-Titled-Tuesday-Blitz-March-05-2024"]
[Site "Chess.com"]
[Date "2024.03.05"]
[Round "5"]
[White "Ykow"]
[Black "grzechu96"]
[Result "1-0"]
[WhiteElo "2543"]
[BlackElo "2732"]
[TimeControl "180+1"]
[EndTime "14:52:01 PST"]
[Termination "Ykow won by resignation"]

1. e4 {[%clk 0:03:00.9]} 1... c5 {[%clk 0:03:00]} 2. Nf3 {[%clk 0:02:59.7]} 2...
d6 {[%clk 0:02:59.9]} 3. Nc3 {[%clk 0:02:57.4]} 3... Nf6 {[%clk 0:02:56.9]} 4.
e5 {[%clk 0:02:57.3]} 4... dxe5 {[%clk 0:02:55.1]} 5. Nxe5 {[%clk 0:02:58.2]}
5... a6 {[%clk 0:02:55.4]} 6. g3 {[%clk 0:02:58.1]} 6... Qc7 {[%clk 0:02:55]} 7.
d4 {[%clk 0:02:54.3]} 7... cxd4 {[%clk 0:02:48.5]} 8. Qxd4 {[%clk 0:02:55.2]}
8... e6 {[%clk 0:02:22.7]} 9. Bf4 {[%clk 0:02:53.4]} 9... Qa5 {[%clk 0:01:41.7]}
10. Nc4 {[%clk 0:02:48.3]} 10... Qc5 {[%clk 0:01:39.2]} 11. Qxc5 {[%clk
0:02:21.6]} 11... Bxc5 {[%clk 0:01:40.1]} 12. Na4 {[%clk 0:02:21.9]} 12... Nbd7
{[%clk 0:01:23.8]} 13. Nxc5 {[%clk 0:02:20]} 13... Nxc5 {[%clk 0:01:24.2]} 14.
Nb6 {[%clk 0:02:20.3]} 14... Nd5 {[%clk 0:00:43.8]} 15. Nxa8 {[%clk 0:02:19]}
15... Nxf4 {[%clk 0:00:43.2]} 16. gxf4 {[%clk 0:02:19.3]} 16... b5 {[%clk
0:00:34.5]} 17. Bg2 {[%clk 0:02:19.1]} 17... Bb7 {[%clk 0:00:24]} 18. Bxb7
{[%clk 0:02:18.6]} 18... Nxb7 {[%clk 0:00:24.9]} 19. O-O-O {[%clk 0:02:18.9]}
19... Ke7 {[%clk 0:00:24.9]} 20. Nb6 {[%clk 0:02:18.6]} 20... Nd6 {[%clk
0:00:22.2]} 21. Rhe1 {[%clk 0:02:19.2]} 1-0

[Event "Late-Titled-Tuesday-Blitz-March-05-2024"]
[Site "Chess.com"]
[Date "2024.03.05"]
[Round "5"]
[White "Gambito_SE"]
[Black "FMJoseHerrera"]
[Result "0-1"]
[WhiteElo "2507"]
[BlackElo "2763"]
[TimeControl "180+1"]
[EndTime "14:52:02 PST"]
[Termination "FMJoseHerrera won by resignation"]

1. e4 {[%clk 0:03:00.9]} 1... c5 {[%clk 0:02:59.2]} 2. Nc3 {[%clk 0:03:00]} 2...
e6 {[%clk 0:03:00.1]} 3. g3 {[%clk 0:02:58.8]} 3... b6 {[%clk 0:02:59.2]} 4. Bg2
{[%clk 0:02:58.6]} 4... Bb7 {[%clk 0:03:00.1]} 5. Nge2 {[%clk 0:02:58.8]} 5...
a6 {[%clk 0:03:00.4]} 6. O-O {[%clk 0:02:58.5]} 6... Qc7 {[%clk 0:03:00.9]} 7.
d3 {[%clk 0:02:53.9]} 7... d6 {[%clk 0:03:00.3]} 8. f4 {[%clk 0:02:53.1]} 8...
Nd7 {[%clk 0:02:59.9]} 9. Be3 {[%clk 0:02:51.4]} 9... h5 {[%clk 0:02:59.2]} 10.
h3 {[%clk 0:02:51.4]} 10... Be7 {[%clk 0:02:59.4]} 11. a4 {[%clk 0:02:48.1]}
11... Ngf6 {[%clk 0:02:59.2]} 12. Qd2 {[%clk 0:02:41]} 12... g6 {[%clk
0:02:56.9]} 13. Rf2 {[%clk 0:02:38.1]} 13... O-O-O {[%clk 0:02:48.9]} 14. Rff1
{[%clk 0:01:49.7]} 14... d5 {[%clk 0:02:45.7]} 15. e5 {[%clk 0:01:49.7]} 15...
d4 {[%clk 0:02:44.7]} 16. exf6 {[%clk 0:01:50]} 16... Nxf6 {[%clk 0:02:36.6]}
17. Bf2 {[%clk 0:01:21.3]} 17... dxc3 {[%clk 0:02:35.4]} 18. Nxc3 {[%clk
0:01:20.2]} 18... Bxg2 {[%clk 0:02:34.8]} 19. Kxg2 {[%clk 0:01:21.1]} 19... Qc6+
{[%clk 0:02:35.1]} 20. Kg1 {[%clk 0:01:19.4]} 20... h4 {[%clk 0:02:35]} 21. g4
{[%clk 0:01:18.8]} 21... Nxg4 {[%clk 0:02:22.6]} 22. hxg4 {[%clk 0:01:17.4]}
22... h3 {[%clk 0:02:23.5]} 23. Bg3 {[%clk 0:01:08.7]} 23... h2+ {[%clk
0:02:21.8]} 24. Bxh2 {[%clk 0:01:09]} 24... Rh4 {[%clk 0:02:22]} 25. Qe2 {[%clk
0:01:03.9]} 25... Rdh8 {[%clk 0:02:20.9]} 26. Rf2 {[%clk 0:01:04.3]} 26... Bf6
{[%clk 0:02:17.9]} 27. Ne4 {[%clk 0:00:52.8]} 27... Bd4 {[%clk 0:02:17.4]} 0-1